bitfinex-derivatives/quotes_BTCF0:USTF0_20210104
["timestamp","ask_amount","ask_price","bid_price","bid_amount"]
[1609800575912,3.8747,31334.0,31325.0,0.10097]
[1609800576112,3.8747,31334.0,31328.0,0.13632608]
[1609800577913,0.13632608,31335.0,31328.0,0.13632608]
[1609800578113,4.7901,31329.0,31328.0,0.13632608]
[1609800579915,4.7901,31329.0,31326.0,0.1531]
[1609800580516,0.13632608,31327.0,31326.0,0.1531]
[1609800581817,0.13632608,31327.0,31323.0,0.13632608]
[1609800583921,4.7901,31329.0,31318.0,2.07288789]
[1609800584223,4.7901,31329.0,31318.0,2.17822789]
[1609800584528,4.7901,31329.0,31326.0,0.13632608]
[1609800584726,0.47900451,31337.0,31326.0,0.13632608]
[1609800585528,5.1097,31338.0,31326.0,0.13632608]
[1609800586629,0.13632608,31327.0,31326.0,0.13632608]
[1609800588431,3.6088,31328.0,31326.0,0.13632608]
[1609800588631,0.47908017,31332.0,31326.0,0.13632608]
[1609800589636,0.13632608,31338.0,31326.0,0.13632608]
[1609800590534,0.13632608,31338.0,31335.0,0.13632608]
[1609800590934,0.6574,31337.0,31335.0,0.13632608]
[1609800594741,0.6574,31337.0,31332.0,0.15891]
[1609800595139,0.47897304,31339.0,31332.0,0.15891]
[1609800595339,0.13632608,31338.0,31336.0,0.13632608]
[1609800595841,0.15503,31348.0,31336.0,0.13632608]
[1609800596642,0.00405766,31355.0,31336.0,0.13632608]
[1609800597245,0.00405766,31355.0,31345.0,0.13632608]
[1609800597443,0.00405766,31355.0,31345.0,0.23962608]
[1609800597647,0.00406861,31358.0,31345.0,0.1033]
[1609800598845,4.502,31361.0,31345.0,0.1033]
[1609800599244,0.13632608,31359.0,31356.0,0.13632608]
[1609800599444,0.61499384,31359.0,31356.0,0.13632608]
[1609800600848,0.13632608,31359.0,31356.0,0.13632608]
[1609800603350,0.13632608,31363.0,31356.0,0.13632608]
[1609800603651,0.13632608,31363.0,31356.0,0.24600608]
[1609800603851,0.2819,31366.0,31356.0,0.24600608]
[1609800605253,0.00406086,31372.0,31365.0,0.13632608]
[1609800605453,0.00406086,31372.0,31365.0,0.26022608]
[1609800606055,0.00405101,31378.0,31365.0,0.26022608]
[1609800607356,0.84897534,31384.0,31377.0,0.13632608]
[1609800607357,0.01388862,31383.0,31377.0,0.13632608]
[1609800607553,0.47831754,31382.0,31377.0,0.13632608]
[1609800607753,4.2563,31380.0,31377.0,0.13632608]
[1609800608254,0.01388862,31383.0,31377.0,0.13632608]
[1609800608458,0.01388862,31383.0,31377.0,0.25230608]
[1609800608655,0.30948691,31385.0,31377.0,0.25230608]
[1609800609253,0.30948691,31385.0,31384.0,0.13632608]
[1609800610356,0.2956,31385.0,31384.0,0.13632608]
[1609800610555,0.2956,31385.0,31377.0,0.11598]
[1609800612059,0.13632608,31380.0,31377.0,0.25230608]
[1609800612662,0.7056,31379.0,31377.0,0.11598]
[1609800613464,0.2956,31385.0,31365.0,0.1239]
[1609800613664,0.2956,31385.0,31368.0,3.7663]
[1609800614069,0.2956,31385.0,31371.0,0.13632608]
[1609800615469,0.77386592,31385.0,31371.0,0.13632608]
[1609800615869,5.14526592,31385.0,31371.0,0.13632608]
[1609800616070,0.13632608,31372.0,31371.0,0.13632608]
[1609800616871,5.14526592,31385.0,31371.0,0.13632608]
[1609800617873,5.14526592,31385.0,31365.0,0.1239]
[1609800618074,0.13632608,31372.0,31362.0,0.13632608]
[1609800618272,3.8791,31373.0,31356.0,0.10968]
[1609800618572,3.8791,31373.0,31352.0,4.3384]
[1609800618773,3.8791,31373.0,31356.0,0.11096]
[1609800620076,0.13632608,31365.0,31363.0,0.13632608]
[1609800624282,3.8791,31373.0,31363.0,0.13632608]
[1609800625983,3.8791,31373.0,31368.0,0.13632608]
[1609800627985,0.13632608,31369.0,31368.0,0.13632608]
[1609800628686,5.12842608,31369.0,31368.0,0.13632608]
[1609800630090,5.12842608,31369.0,31356.0,0.11096]
[1609800630288,5.12842608,31369.0,31352.0,3.967]
[1609800630489,5.12842608,31369.0,31340.0,2.04339464]
[1609800630490,0.13632608,31369.0,31340.0,2.04339464]
[1609800630688,3.9188,31363.0,31340.0,2.04339464]
[1609800631989,0.13632608,31353.0,31351.0,0.13632608]
[1609800633891,4.7683,31352.0,31351.0,0.13632608]
[1609800643202,0.13632608,31353.0,31351.0,0.13632608]
[1609800643404,0.13632608,31353.0,31351.0,0.25964608]
[1609800644204,3.6962,31352.0,31351.0,0.25964608]
[1609800646811,0.4786063,31363.0,31351.0,0.25964608]
[1609800647412,0.4786063,31363.0,31351.0,0.12332]
[1609800647612,5.2616,31355.0,31351.0,0.12332]
[1609800648115,5.2616,31355.0,31354.0,0.13632608]
[1609800649320,5.2616,31355.0,31351.0,0.12332]
[1609800649519,5.2616,31355.0,31346.0,2.05379986]
[1609800650119,5.2616,31355.0,31354.0,0.13632608]
[1609800650318,0.2758,31370.0,31354.0,0.13632608]
[1609800650520,3.8482,31364.0,31354.0,0.29291608]
[1609800650719,0.2758,31370.0,31354.0,0.29291608]
[1609800652220,0.2758,31370.0,31369.0,0.13632608]
[1609800652619,4.6174,31370.0,31369.0,0.13632608]
[1609800655225,0.2758,31370.0,31369.0,0.13632608]
[1609800655425,4.4978,31370.0,31369.0,0.13632608]
[1609800657631,0.2758,31370.0,31369.0,0.13632608]
[1609800659235,0.47842309,31375.0,31369.0,0.13632608]
[1609800659435,0.00405039,31380.0,31369.0,0.13632608]
[1609800659636,4.6578,31371.0,31369.0,0.13632608]
[1609800661139,0.00405039,31380.0,31369.0,0.13632608]
[1609800662338,0.00405039,31380.0,31379.0,0.13632608]
[1609800664739,0.01388712,31381.0,31379.0,0.13632608]
[1609800666643,0.15580684,31382.0,31379.0,0.13632608]
[1609800666644,0.13632608,31382.0,31379.0,0.13632608]
[1609800671246,4.451,31380.0,31379.0,0.13632608]
[1609800672848,0.13632608,31382.0,31379.0,0.13632608]
[1609800676651,0.47830101,31383.0,31379.0,0.13632608]
[1609800677956,0.47830101,31383.0,31375.0,0.11863]
[1609800678157,0.47830101,31383.0,31370.0,4.469]
[1609800678556,0.00405553,31388.0,31382.0,0.13632608]
[1609800678756,4.9427,31383.0,31382.0,0.13632608]
[1609800679757,0.13632608,31389.0,31382.0,0.13632608]
[1609800680457,0.13632608,31389.0,31381.0,0.10167]
[1609800680458,0.13632608,31389.0,31388.0,0.13632608]
[1609800682960,0.13632608,31389.0,31381.0,0.10167]
[1609800683760,0.13632608,31389.0,31378.0,3.6267]
[1609800684466,0.13632608,31382.0,31380.0,0.13632608]
[1609800686169,0.13632608,31382.0,31365.0,0.12132]
[1609800686567,0.00405543,31390.0,31358.0,2.03851268]
[1609800686768,4.3633,31379.0,31358.0,2.03851268]
[1609800687370,4.3633,31379.0,31357.0,5.87258458]
[1609800688672,4.3633,31379.0,31362.0,0.13632608]
[1609800689373,4.3633,31379.0,31362.0,0.28836608]
[1609800690575,4.3633,31379.0,31376.0,0.13632608]
[1609800690981,4.3633,31379.0,31362.0,0.15204]
[1609800692579,0.13632608,31367.0,31366.0,0.13632608]
[1609800693783,0.47842312,31375.0,31366.0,0.13632608]
[1609800694583,0.13632608,31368.0,31366.0,0.13632608]
[1609800695785,4.9957,31367.0,31366.0,0.13632608]
[1609800697288,0.13632608,31368.0,31366.0,0.13632608]
[1609800697786,4.3066,31373.0,31366.0,0.13632608]
[1609800698688,4.3066,31373.0,31372.0,0.13632608]
[1609800700294,0.47842312,31375.0,31372.0,0.13632608]
[1609800700691,0.13632608,31373.0,31372.0,0.13632608]
[1609800700892,5.04212608,31373.0,31372.0,0.13632608]
[1609800703893,0.13632608,31373.0,31372.0,0.13632608]
[1609800705595,4.75802608,31373.0,31372.0,0.13632608]
[1609800706497,0.13632608,31373.0,31372.0,0.24906608]
[1609800707902,0.47840786,31376.0,31372.0,0.24906608]
[1609800708300,0.47840786,31376.0,31375.0,5.2295]
[1609800708499,0.00406675,31381.0,31375.0,5.2295]
[1609800708800,0.14039283,31381.0,31375.0,5.2295]
[1609800709403,0.13632608,31381.0,31375.0,5.2295]
[1609800710305,0.13632608,31381.0,31372.0,0.24906608]
[1609800710805,0.13632608,31381.0,31380.0,0.13632608]
[1609800714111,0.13632608,31381.0,31372.0,0.11274]
[1609800714312,0.13632608,31381.0,31371.0,5.0683]
[1609800714712,0.14039412,31381.0,31371.0,5.0683]
[1609800714914,0.13632608,31372.0,31371.0,5.0683]
[1609800715718,0.13632608,31372.0,31370.0,0.13632608]
[1609800715917,4.5638,31371.0,31370.0,0.13632608]
[1609800718319,0.13632608,31372.0,31370.0,0.13632608]
[1609800719920,0.13632608,31372.0,31369.0,0.11257]
[1609800720926,0.13632608,31372.0,31369.0,0.24889608]
[1609800721125,3.727,31370.0,31369.0,0.24889608]
[1609800723433,0.13632608,31372.0,31369.0,0.24889608]
[1609800725938,4.3277,31370.0,31369.0,0.24889608]
[1609800727335,4.80619932,31370.0,31369.0,0.24889608]
[1609800728036,0.47849932,31370.0,31369.0,0.24889608]
[1609800731243,5.20259932,31370.0,31369.0,0.24889608]
[1609800732843,0.47849932,31370.0,31369.0,0.24889608]
[1609800736049,5.36029932,31370.0,31369.0,0.24889608]
[1609800738350,0.47849932,31370.0,31369.0,0.24889608]
[1609800740954,5.55269932,31370.0,31369.0,0.24889608]
[1609800745259,0.47849932,31370.0,31369.0,0.24889608]
[1609800746064,5.07029932,31370.0,31369.0,0.24889608]
[1609800746467,0.47849932,31370.0,31369.0,0.24889608]
[1609800748462,0.13632608,31372.0,31369.0,0.24889608]
[1609800748964,0.12691486,31378.0,31369.0,0.24889608]
[1609800749163,0.00407486,31378.0,31369.0,0.24889608]
[1609800749364,0.13632608,31378.0,31377.0,0.13632608]
[1609800749564,0.0139708,31379.0,31377.0,0.13632608]
[1609800750465,0.0139708,31379.0,31378.0,0.5551]
[1609800750667,0.00407441,31380.0,31378.0,0.5551]
[1609800750866,0.00407441,31380.0,31377.0,0.13632608]
[1609800751077,0.00407441,31380.0,31379.0,4.0495]
[1609800752269,0.01396317,31383.0,31379.0,4.0495]
[1609800752467,0.47833112,31381.0,31379.0,4.0495]
[1609800753569,0.01396317,31383.0,31379.0,4.0495]
[1609800754271,0.15027958,31386.0,31379.0,4.0495]
[1609800755271,0.15027958,31386.0,31385.0,0.13632608]
[1609800755470,0.15027958,31386.0,31385.0,0.71182608]
[1609800755971,0.15027958,31386.0,31385.0,0.13632608]
[1609800756271,0.13632608,31386.0,31385.0,0.13632608]
[1609800759981,0.47820958,31389.0,31382.0,4.9261]
[1609800760978,0.47820958,31389.0,31376.0,0.09841]
[1609800761277,0.47820958,31389.0,31388.0,0.13632608]
[1609800761479,5.11610958,31389.0,31388.0,0.13632608]
[1609800763080,5.11610958,31389.0,31378.0,4.39706]
[1609800763280,0.13632608,31380.0,31378.0,4.39706]
[1609800763583,5.11610958,31389.0,31378.0,4.39706]
[1609800764685,5.11610958,31389.0,31378.0,4.2948]
[1609800765286,0.13632608,31379.0,31378.0,4.43112608]
[1609800765488,0.13632608,31379.0,31378.0,4.2948]
[1609800766086,0.13632608,31379.0,31369.0,0.11257]
[1609800766387,4.4879,31378.0,31369.0,0.11257]
[1609800766587,4.4879,31378.0,31364.0,4.3549]
[1609800767286,4.4879,31378.0,31376.0,0.13632608]
[1609800767586,0.14197,31385.0,31376.0,0.13632608]
[1609800768089,5.0268,31382.0,31376.0,0.13632608]
[1609800768287,0.14197,31385.0,31376.0,0.13632608]
[1609800768989,0.14197,31385.0,31384.0,4.7503]
[1609800769189,0.00406267,31386.0,31384.0,4.7503]
[1609800769388,0.00406267,31386.0,31384.0,4.27192278]
[1609800769789,0.00406267,31386.0,31385.0,0.13632608]
[1609800771891,0.13632608,31389.0,31385.0,0.13632608]
[1609800773595,0.13632608,31389.0,31385.0,5.46612608]
[1609800776203,0.13632608,31389.0,31385.0,0.13632608]
[1609800779405,0.13632608,31389.0,31385.0,4.89472608]
[1609800781308,0.13632608,31389.0,31385.0,0.13632608]
[1609800783713,0.13632608,31389.0,31379.0,3.6793]
[1609800783912,0.13632608,31380.0,31379.0,3.6793]
[1609800784915,0.286,31391.0,31379.0,3.6793]
[1609800785117,0.290058,31391.0,31379.0,3.6793]
[1609800785918,0.13632608,31383.0,31382.0,0.13632608]
[1609800792332,0.13632608,31383.0,31382.0,4.09682608]
[1609800792533,0.47827057,31385.0,31382.0,4.09682608]
[1609800793334,0.29005963,31391.0,31382.0,4.09682608]
[1609800793533,0.286,31391.0,31382.0,4.09682608]
[1609800793933,0.286,31391.0,31390.0,0.13632608]
[1609800795335,0.286,31391.0,31390.0,4.95402608]
[1609800795837,0.42232608,31391.0,31390.0,4.95402608]
[1609800796435,0.42232608,31391.0,31390.0,0.13632608]
[1609800796737,5.15372608,31391.0,31390.0,0.13632608]
[1609800798640,0.42232608,31391.0,31390.0,0.13632608]
[1609800801845,4.15122608,31391.0,31390.0,0.13632608]
[1609800803650,0.42232608,31391.0,31390.0,0.13632608]
[1609800805252,0.42232608,31391.0,31390.0,0.86532608]
[1609800806453,0.42232608,31391.0,31390.0,0.13632608]
[1609800806855,4.25382608,31391.0,31390.0,0.13632608]
[1609800807554,4.25382608,31391.0,31383.0,0.12415]
[1609800807957,0.13632608,31387.0,31385.0,0.13632608]
[1609800808257,0.13632608,31387.0,31381.0,5.1289]
[1609800809958,4.1175,31391.0,31382.0,0.13632608]
[1609800810658,0.286,31391.0,31382.0,0.13632608]
[1609800810859,0.286,31391.0,31385.0,4.2807]
[1609800811560,0.286,31391.0,31384.0,0.13817]
[1609800811860,3.8691,31390.0,31384.0,0.13817]
[1609800812060,3.8691,31390.0,31386.0,0.13632608]
[1609800813164,0.286,31391.0,31386.0,0.13632608]
[1609800813365,0.286,31391.0,31386.0,3.91172608]
[1609800813966,0.286,31391.0,31390.0,0.13632608]
[1609800814165,0.286,31391.0,31390.0,0.67452608]
[1609800814465,0.286,31391.0,31390.0,0.13632608]
[1609800815965,0.42232608,31391.0,31390.0,0.13632608]
[1609800816166,0.42232608,31391.0,31390.0,4.90232608]
[1609800816468,0.42232608,31391.0,31390.0,0.13632608]
[1609800816766,4.12202608,31391.0,31390.0,0.13632608]
[1609800817767,4.12202608,31391.0,31384.0,0.13817]
[1609800817967,3.9857,31391.0,31385.0,0.13632608]
[1609800819774,0.286,31391.0,31385.0,0.13632608]
[1609800819973,0.13632608,31386.0,31385.0,0.13632608]
[1609800820172,0.13632608,31386.0,31385.0,4.92992608]
[1609800821474,0.13632608,31386.0,31385.0,0.13632608]
[1609800826181,0.13632608,31386.0,31385.0,5.17332608]
[1609800826585,0.13632608,31386.0,31385.0,0.13632608]
[1609800829386,0.13632608,31386.0,31385.0,4.93032608]
[1609800831594,0.13632608,31386.0,31385.0,0.13632608]
[1609800834495,0.13632608,31386.0,31385.0,4.44022608]
[1609800835296,0.47820956,31389.0,31385.0,4.3039]
[1609800836096,0.61453564,31389.0,31388.0,0.13632608]
[1609800836296,0.61453564,31389.0,31388.0,0.66072608]
[1609800840000,0.47820956,31389.0,31388.0,0.66072608]
[1609800841001,0.00407346,31392.0,31388.0,0.66072608]
[1609800841703,0.01396067,31398.0,31388.0,0.13632608]
[1609800842102,0.01396067,31398.0,31397.0,0.13632608]
[1609800842502,0.01396067,31398.0,31391.0,0.10302]
[1609800843302,5.2376,31392.0,31391.0,0.10302]
[1609800843903,0.01396218,31407.0,31391.0,0.10302]
[1609800844104,0.01396218,31407.0,31393.0,3.8688]
[1609800846110,0.13632608,31394.0,31393.0,3.8688]
[1609800846308,0.13632608,31394.0,31390.0,0.13632608]
[1609800847407,3.9077,31391.0,31390.0,0.13632608]
[1609800848207,0.34186824,31390.0,31388.0,2.05915224]
[1609800849812,0.34186824,31390.0,31379.0,2.06595745]
[1609800850213,0.34186824,31390.0,31379.0,7.03955745]
[1609800850411,0.34186824,31390.0,31387.0,0.13632608]
[1609800852115,0.34186824,31390.0,31383.0,5.1348]
[1609800852317,0.13632608,31384.0,31377.0,2.0693182]
[1609800852916,0.13632608,31384.0,31376.0,2.32311835]
[1609800853517,0.13632608,31384.0,31376.0,2.18679227]
[1609800854219,0.13632608,31384.0,31376.0,0.11696]
[1609800854420,5.2239,31389.0,31380.0,0.13632608]
[1609800854824,5.2239,31389.0,31376.0,0.11696]
[1609800855322,5.2239,31389.0,31377.0,0.6146]
[1609800856024,5.23786742,31389.0,31377.0,0.6146]
[1609800856323,0.13632608,31383.0,31378.0,0.13632608]
[1609800856923,4.0018,31379.0,31378.0,0.13632608]
[1609800859929,0.13632608,31383.0,31378.0,0.13632608]
[1609800860529,0.13632608,31379.0,31374.0,4.0471]
[1609800862432,0.13632608,31379.0,31378.0,0.13632608]
[1609800867035,3.99212608,31379.0,31378.0,0.13632608]
[1609800867937,3.99212608,31379.0,31371.0,2.08032561]
[1609800868438,3.8558,31379.0,31375.0,0.13632608]
[1609800869636,0.4782858,31384.0,31375.0,0.13632608]
[1609800869836,5.4920858,31384.0,31375.0,0.13632608]
[1609800870437,0.13632608,31376.0,31375.0,0.13632608]
[1609800872443,4.42712608,31376.0,31375.0,0.13632608]
[1609800874544,0.13632608,31376.0,31375.0,0.13632608]
[1609800878750,0.13632608,31376.0,31369.0,2.24982657]
[1609800878949,0.13632608,31376.0,31370.0,2.09942751]
[1609800879150,3.8513,31372.0,31370.0,2.09942751]
[1609800880554,0.13632608,31371.0,31369.0,0.153]
[1609800880955,0.13632608,31371.0,31366.0,2.10240583]
[1609800882054,4.7865,31367.0,31360.0,2.10259188]
[1609800882655,0.73432608,31361.0,31360.0,2.10259188]
[1609800883556,0.73432608,31361.0,31359.0,2.10382674]
[1609800885457,0.73432608,31361.0,31358.0,2.1046561]
[1609800887060,0.73432608,31361.0,31357.0,2.10510563]
[1609800888561,0.73432608,31361.0,31353.0,2.10358885]
[1609800888761,0.13632608,31361.0,31353.0,2.10358885]
[1609800888961,4.8188,31354.0,31353.0,2.10358885]
[1609800890563,4.95512608,31354.0,31353.0,2.10358885]
[1609800892163,4.95512608,31354.0,31345.0,2.10933479]
[1609800892362,0.13632608,31354.0,31345.0,2.10933479]
[1609800892562,4.00972608,31346.0,31345.0,2.10933479]
[1609800893764,4.00972608,31346.0,31341.0,2.10407447]
[1609800894563,0.13632608,31342.0,31341.0,2.10407447]
[1609800894763,0.87662608,31342.0,31341.0,2.10407447]
[1609800895463,0.87662608,31342.0,31332.0,2.81423904]
[1609800895464,0.87662608,31342.0,31332.0,0.13632608]
[1609800896664,0.87662608,31342.0,31341.0,0.13632608]
[1609800897064,0.87662608,31342.0,31341.0,0.23666608]
[1609800901469,0.87662608,31342.0,31341.0,0.10034]
[1609800901870,0.13632608,31342.0,31341.0,0.10034]
[1609800902268,0.13632608,31342.0,31330.0,2.29265877]
[1609800902469,5.0415,31331.0,31330.0,2.29265877]
[1609800902668,5.0415,31331.0,31330.0,2.42898485]
[1609800904673,0.13632608,31336.0,31330.0,2.42898485]
[1609800904873,3.7852,31335.0,31330.0,2.55045485]
[1609800905674,3.7852,31335.0,31330.0,9.41121068]
[1609800905874,3.7852,31335.0,31333.0,0.38894478]
[1609800906675,3.7852,31335.0,31334.0,0.13632608]
[1609800906877,3.493492,31335.0,31334.0,0.13632608]
[1609800907077,5.3049,31335.0,31334.0,0.13632608]
[1609800907587,0.13632608,31342.0,31334.0,0.13632608]
[1609800907776,5.0231,31345.0,31333.0,0.38894478]
[1609800908477,0.47869794,31357.0,31342.0,4.6512]
[1609800908679,0.47869794,31357.0,31351.0,4.3298]
[1609800908878,0.47869794,31357.0,31356.0,0.13632608]
[1609800909079,0.47869794,31357.0,31356.0,4.52682608]
[1609800910079,0.00404656,31366.0,31356.0,4.3905]
[1609800910980,0.00404656,31366.0,31365.0,0.13632608]
[1609800911180,0.00404656,31366.0,31365.0,0.90042608]
[1609800911379,0.00404656,31366.0,31365.0,1.01997608]
[1609800911983,0.00404656,31366.0,31365.0,0.88365]
[1609800912885,0.00404656,31366.0,31365.0,1.01997608]
[1609800917191,0.00404656,31366.0,31365.0,0.25587608]
[1609800920398,0.00404656,31366.0,31365.0,4.56617608]
[1609800922200,0.00404656,31366.0,31365.0,0.25587608]
[1609800925003,0.00404656,31366.0,31365.0,0.99707608]
[1609800932212,0.00404656,31366.0,31365.0,0.25587608]
[1609800935515,0.00404656,31366.0,31365.0,4.10597608]
[1609800947434,0.00404656,31366.0,31365.0,0.25587608]
[1609800952439,0.00404656,31366.0,31365.0,0.11955]
[1609800952741,0.00404656,31366.0,31363.0,5.2629]
[1609800953246,0.00404656,31366.0,31365.0,0.13632608]
[1609800953442,0.00404656,31366.0,31365.0,0.14818]
[1609800953843,0.00404656,31366.0,31362.0,1.44846377]
[1609800955346,0.13632608,31363.0,31362.0,1.44846377]
[1609800957651,4.10642608,31363.0,31362.0,1.44846377]
[1609800959657,0.13632608,31363.0,31362.0,1.44846377]
[1609800962759,5.03332608,31363.0,31362.0,1.44846377]
[1609800962960,5.03332608,31363.0,31362.0,1.07756377]
[1609800964862,0.13632608,31363.0,31362.0,1.07756377]
[1609800967563,5.13702608,31363.0,31362.0,1.07756377]
[1609800968263,0.13632608,31363.0,31362.0,1.07756377]
[1609800968864,0.13632608,31363.0,31362.0,0.148]
[1609800969267,0.13632608,31363.0,31358.0,0.13632608]
[1609800969765,0.13632608,31363.0,31355.0,5.2033]
[1609800971368,0.13632608,31356.0,31355.0,5.2033]
[1609800972470,0.13632608,31356.0,31349.0,0.13632608]
[1609800972871,3.8619,31353.0,31349.0,0.13632608]
[1609800973471,0.13632608,31350.0,31349.0,0.13632608]
[1609800979978,0.13632608,31350.0,31346.0,4.9479]
[1609800982583,0.13632608,31350.0,31345.0,0.13632608]
[1609800982784,3.9851,31347.0,31345.0,0.13632608]
[1609800983184,3.9851,31347.0,31335.0,4.6502]
[1609800983386,0.13632608,31350.0,31322.0,0.2913]
[1609800983584,0.13632608,31336.0,31333.0,0.13632608]
[1609800992796,3.7892,31334.0,31333.0,0.13632608]
[1609800993498,3.7892,31334.0,31325.0,5.0004]
[1609800993697,0.13632608,31336.0,31327.0,0.13632608]
[1609800994298,4.0741,31332.0,31327.0,0.29570608]
[1609800995501,0.0959,31331.0,31327.0,0.29570608]
[1609800995702,0.13632608,31328.0,31327.0,0.29570608]
[1609801001616,5.28752608,31328.0,31327.0,0.29570608]
[1609801003317,0.13632608,31328.0,31327.0,0.29570608]
[1609801010527,0.13632608,31328.0,31327.0,0.15938]
[1609801010728,0.13632608,31328.0,31320.0,5.0781]
[1609801011827,4.1009,31330.0,31321.0,0.13632608]
[1609801012028,4.1009,31330.0,31321.0,0.28477608]
[1609801012428,0.0968,31329.0,31321.0,0.28477608]
[1609801013029,5.3056,31322.0,31321.0,0.28477608]
[1609801013629,5.44192608,31322.0,31321.0,0.28477608]
[1609801014132,5.53632608,31322.0,31321.0,0.28477608]
[1609801015333,0.23072608,31322.0,31321.0,0.28477608]
[1609801015532,0.13632608,31322.0,31321.0,0.28477608]
[1609801016532,0.23292608,31322.0,31321.0,0.28477608]
[1609801017334,0.13632608,31322.0,31321.0,0.28477608]
[1609801017535,5.0019,31326.0,31321.0,0.28477608]
[1609801017735,0.13632608,31325.0,31321.0,0.28477608]
[1609801018134,4.1223,31322.0,31321.0,0.28477608]
[1609801020438,0.13632608,31325.0,31321.0,0.28477608]
[1609801020639,0.0951,31324.0,31321.0,0.28477608]
[1609801022543,4.01842608,31325.0,31321.0,0.28477608]
[1609801023345,4.01842608,31325.0,31321.0,0.14845]
[1609801023546,4.01842608,31325.0,31318.0,2.11669303]
[1609801023746,0.0958,31324.0,31321.0,0.10685]
[1609801024546,3.8821,31325.0,31321.0,0.10685]
[1609801025649,0.0942,31324.0,31321.0,0.10685]
[1609801025848,0.13632608,31322.0,31321.0,0.10685]
[1609801026950,0.23192608,31322.0,31321.0,0.10685]
[1609801027250,0.13632608,31322.0,31321.0,0.10685]
[1609801028251,0.23162608,31322.0,31321.0,0.10685]
[1609801028853,0.23162608,31322.0,31317.0,0.13632608]
[1609801029557,0.13632608,31322.0,31317.0,0.13632608]
[1609801029755,0.13632608,31318.0,31317.0,0.13632608]
[1609801030156,0.23142608,31318.0,31317.0,0.13632608]
[1609801031855,0.13632608,31318.0,31317.0,0.13632608]
[1609801032858,0.23132608,31318.0,31317.0,0.13632608]
[1609801033055,0.13632608,31318.0,31317.0,0.13632608]
[1609801035259,0.13632608,31318.0,31317.0,0.14418]
[1609801035656,4.5339,31318.0,31317.0,0.14418]
[1609801035857,3.8704,31318.0,31317.0,0.14418]
[1609801036160,4.00672608,31318.0,31317.0,0.14418]
[1609801037363,0.13632608,31318.0,31317.0,0.14418]
[1609801037562,0.13632608,31318.0,31317.0,4.03458]
[1609801037963,0.13632608,31318.0,31317.0,0.14418]
[1609801038162,4.90842608,31318.0,31317.0,0.14418]
[1609801039564,4.7721,31318.0,31317.0,0.14418]
[1609801040167,4.90842608,31318.0,31317.0,0.14418]
[1609801040472,4.90842608,31318.0,31310.0,0.13632608]
[1609801042269,0.13632608,31311.0,31310.0,0.13632608]
[1609801043473,0.23292608,31311.0,31310.0,0.13632608]
[1609801043872,0.13632608,31311.0,31310.0,0.13632608]
[1609801044873,0.23082608,31311.0,31310.0,0.13632608]
[1609801045075,0.13632608,31311.0,31310.0,0.13632608]
[1609801046175,0.23182608,31311.0,31310.0,0.13632608]
[1609801047074,0.13632608,31311.0,31310.0,0.13632608]
[1609801048177,0.23182608,31311.0,31310.0,0.13632608]
[1609801048376,0.13632608,31311.0,31310.0,0.29442608]
[1609801048779,0.73462608,31311.0,31310.0,0.29442608]
[1609801049380,0.83042608,31311.0,31310.0,0.29442608]
[1609801049776,0.73462608,31311.0,31310.0,0.29442608]
[1609801050879,0.83082608,31311.0,31310.0,0.29442608]
[1609801051080,0.73462608,31311.0,31310.0,0.29442608]
[1609801052080,0.83092608,31311.0,31310.0,0.29442608]
[1609801053580,0.73462608,31311.0,31310.0,0.29442608]
[1609801054582,0.83112608,31311.0,31310.0,0.29442608]
[1609801054780,0.73462608,31311.0,31310.0,0.29442608]
[1609801054982,0.13632608,31311.0,31310.0,0.29442608]
[1609801055983,0.23062608,31311.0,31310.0,0.29442608]
[1609801056383,0.13632608,31311.0,31310.0,0.29442608]
[1609801057384,0.23182608,31311.0,31310.0,0.29442608]
[1609801057684,0.90872608,31311.0,31310.0,0.29442608]
[1609801058687,0.81322608,31311.0,31310.0,0.29442608]
[1609801059689,0.90892608,31311.0,31310.0,0.29442608]
[1609801060287,0.81322608,31311.0,31310.0,0.29442608]
[1609801061289,0.90882608,31311.0,31310.0,0.29442608]
[1609801062195,0.81322608,31311.0,31310.0,0.29442608]
[1609801063093,0.6769,31311.0,31310.0,0.29442608]
[1609801063293,0.7738,31311.0,31310.0,0.29442608]
[1609801063495,0.6769,31311.0,31310.0,0.29442608]
[1609801064499,0.7724,31311.0,31310.0,0.29442608]
[1609801065000,0.6769,31311.0,31310.0,0.29442608]
[1609801065600,0.6769,31311.0,31310.0,2.42379416]
[1609801065999,0.7733,31311.0,31310.0,2.42379416]
[1609801066902,0.6769,31311.0,31310.0,2.42379416]
[1609801067604,0.47909997,31331.0,31310.0,2.42379416]
[1609801067802,0.47909997,31331.0,31315.0,4.9942]
[1609801068002,0.0957,31330.0,31315.0,4.9942]
[1609801068203,0.0957,31330.0,31310.0,2.42379416]
[1609801068404,5.1285,31314.0,31310.0,2.28746808]
[1609801068604,0.0967,31313.0,31310.0,2.28746808]
[1609801069004,5.1285,31314.0,31310.0,2.28746808]
[1609801069205,5.1285,31314.0,31312.0,2.12906488]
[1609801069906,5.1285,31314.0,31310.0,0.1581]
[1609801069907,0.0952,31313.0,31310.0,2.48086014]
[1609801070309,0.0952,31313.0,31312.0,2.12990531]
[1609801070507,0.0952,31313.0,31312.0,2.26623139]
[1609801070707,3.7742,31319.0,31312.0,2.26623139]
[1609801071508,3.7742,31319.0,31312.0,2.98283139]
[1609801071708,0.0943,31318.0,31312.0,2.98283139]
[1609801071908,0.0943,31318.0,31312.0,0.85292608]
[1609801072108,0.0943,31318.0,31312.0,0.13632608]
[1609801072308,0.13632608,31324.0,31314.0,4.8901]
[1609801072509,0.13632608,31324.0,31317.0,0.23453608]
[1609801073309,0.0948,31323.0,31317.0,0.23453608]
[1609801074411,0.0948,31323.0,31322.0,0.13632608]
[1609801075515,0.0948,31323.0,31317.0,0.09821]
[1609801075714,4.5004,31331.0,31317.0,0.09821]
[1609801076415,0.13632608,31318.0,31317.0,0.09821]
[1609801076616,0.23162608,31318.0,31317.0,0.09821]
[1609801076815,0.13632608,31318.0,31317.0,0.09821]
[1609801077716,0.23322608,31318.0,31315.0,0.13632608]
[1609801079320,0.13632608,31318.0,31315.0,0.13632608]
[1609801081820,0.47912603,31329.0,31313.0,2.13349137]
[1609801082020,0.47912603,31329.0,31317.0,4.3717]
[1609801082220,0.00407303,31333.0,31317.0,4.50072]
[1609801082921,4.20526334,31337.0,31317.0,4.50072]
[1609801083120,4.20526334,31337.0,31332.0,0.13632608]
[1609801083322,0.01396334,31337.0,31332.0,0.23319608]
[1609801083520,0.01396334,31337.0,31334.0,3.8314]
[1609801083721,0.0040748,31338.0,31334.0,3.8314]
[1609801084323,0.60190647,31340.0,31332.0,0.23319608]